bitfinex/quotes_ETHUSD_20240827
["timestamp","ask_amount","ask_price","bid_price","bid_amount"]
[1724788231469,0.29945428,2593.1,2592.8,3.8568]
[1724788231639,2.0,2593.2,2592.8,3.8568]
[1724788231838,0.29945428,2593.1,2592.8,3.8568]
[1724788232047,2.0,2593.2,2592.8,3.8568]
[1724788232254,0.29945428,2593.1,2592.8,3.85675]
[1724788232454,2.0,2593.2,2592.8,3.85675]
[1724788232791,0.29945428,2593.1,2592.8,3.85675]
[1724788232947,0.29945428,2593.1,2592.9,3.93378883]
[1724788233155,2.0,2593.2,2593.0,3.85653]
[1724788233750,2.0,2593.2,2592.9,3.85666]
[1724788234250,2.0,2593.2,2592.7,3.85686]
[1724788234456,0.29945428,2593.1,2592.7,3.85686]
[1724788234651,2.0,2593.2,2592.7,3.85686]
[1724788234976,0.29852858,2593.1,2592.7,7.71376]
[1724788235163,0.29852858,2593.1,2592.8,3.85682]
[1724788235482,2.0,2593.2,2592.7,7.71376]
[1724788235736,0.29852858,2593.1,2592.8,3.85679]
[1724788236193,2.0,2593.2,2592.8,3.85679]
[1724788236363,2.0,2592.9,2592.6,3.85699]
[1724788236545,2.0,2592.9,2592.5,7.32]
[1724788236745,0.29802355,2592.8,2592.6,3.85711]
[1724788237049,2.0,2592.9,2592.6,3.85711]
[1724788237252,2.0,2592.9,2592.7,3.85689]
[1724788237253,0.29802355,2592.8,2592.7,3.85689]
[1724788237461,2.0,2592.9,2592.8,3.85683]
[1724788238492,2.0,2592.9,2592.7,3.85697]
[1724788240190,2.0,2592.9,2592.8,3.85683]
[1724788242389,2.0,2593.3,2593.1,3.85637]
[1724788242567,2.0,2593.3,2593.1,3.8563]
[1724788242762,0.29794778,2593.2,2593.1,3.8563]
[1724788243066,2.0,2593.3,2593.1,3.8563]
[1724788243275,0.29794778,2593.2,2593.1,3.8563]
[1724788243475,2.0,2593.3,2593.1,3.8563]
[1724788243716,2.0,2593.3,2593.2,3.85623]
[1724788245278,2.0,2593.6,2593.4,3.85591]
[1724788245592,0.29794778,2593.5,2593.4,3.85591]
[1724788246222,0.29794778,2593.5,2593.2,3.85612]
[1724788246419,2.90254256,2593.5,2593.1,3.85637]
[1724788247129,2.0,2593.3,2593.0,3.8565]
[1724788247424,2.0,2593.3,2592.9,7.71324]
[1724788247729,0.29797305,2593.2,2593.0,3.85652]
[1724788248225,2.0,2593.3,2593.0,3.85652]
[1724788248406,2.0,2593.3,2593.1,3.85635]
[1724788248577,0.29797305,2593.2,2593.1,3.85635]
[1724788248991,0.22979731,2593.2,2592.9,3.8566]
[1724788249191,4.3046,2593.3,2592.9,3.8566]
[1724788249425,0.29797305,2593.1,2592.9,3.8566]
[1724788249590,4.3046,2593.3,2592.8,3.85682]
[1724788249993,0.29797305,2593.2,2592.8,3.85682]
[1724788250282,4.3046,2593.3,2592.8,3.85682]
[1724788250483,0.29797305,2593.2,2592.9,3.85666]
[1724788250721,4.3046,2593.3,2592.9,3.85666]
[1724788250942,0.29797305,2593.1,2592.9,3.85666]
[1724788251094,4.3046,2593.3,2592.9,3.85666]
[1724788251302,0.29797305,2593.2,2592.9,3.85666]
[1724788251607,0.29797305,2593.1,2592.9,3.85666]
[1724788251803,4.3046,2593.3,2592.9,3.85666]
[1724788252041,0.29797305,2593.2,2592.9,3.85666]
[1724788252242,4.3046,2593.3,2592.9,3.85666]
[1724788252412,0.29797305,2593.2,2592.9,7.71327]
[1724788252609,4.3046,2593.3,2592.9,7.71327]
[1724788252816,0.29797305,2593.2,2593.0,3.85646]
[1724788252996,0.29797305,2593.2,2592.9,3.85661]
[1724788252997,0.29797305,2593.2,2593.1,3.85638]
[1724788253197,2.0,2593.3,2593.1,3.85638]
[1724788253431,2.0,2593.3,2593.2,3.85623]
[1724788254123,2.0,2593.6,2593.4,3.85583]
[1724788254300,4.0,2593.5,2593.4,3.85583]
[1724788255215,2.0,2593.6,2593.5,3.85579]
[1724788255458,6.0,2593.6,2593.5,3.85579]
[1724788255758,6.29808249,2593.6,2593.5,3.85579]
[1724788256125,2.29808249,2593.6,2593.5,3.85579]
[1724788256649,2.0,2593.6,2593.1,3.85631]
[1724788256857,0.29808249,2593.5,2593.1,7.7126]
[1724788257055,4.6646,2593.6,2593.1,7.7126]
[1724788257354,4.6646,2593.6,2593.2,3.85618]
[1724788257859,2.0,2593.3,2593.1,3.85629]
[1724788258375,0.29808249,2593.2,2593.1,3.85629]
[1724788258871,2.0,2593.3,2593.1,3.85629]
[1724788259156,0.29808249,2593.2,2593.1,3.85629]
[1724788259666,2.0,2593.3,2593.1,3.85629]
[1724788259833,0.29808249,2593.2,2593.1,3.85629]
[1724788260159,2.0,2593.6,2593.3,3.85598]
[1724788260319,2.0,2593.6,2593.4,3.85593]
[1724788260524,0.29808249,2593.5,2593.4,3.85593]
[1724788260761,0.29808249,2593.5,2593.4,7.71187]
[1724788261060,2.0,2593.6,2593.4,4.47314849]
[1724788261245,2.0,2593.6,2593.4,3.85593]
[1724788261557,2.0,2593.6,2593.4,3.85585]
[1724788262240,2.0,2593.6,2593.4,3.85592]
[1724788262675,2.0,2593.6,2593.5,3.85579]
[1724788262981,2.0,2593.6,2593.4,3.85592]
[1724788264277,2.0,2593.6,2593.5,3.85579]
[1724788264943,2.0,2593.9,2593.6,3.85563]
[1724788265168,0.40283021,2594.0,2593.7,3.93249676]
[1724788265478,2.0,2594.2,2593.4,6.738312]
[1724788265479,2.0,2594.2,2594.0,3.85496]
[1724788265840,2.0,2594.2,2593.9,3.85519]
[1724788266041,2.0,2594.2,2593.9,4.875928]
[1724788266239,2.0,2594.2,2594.1,3.8549]
[1724788266460,2.0,2594.2,2594.0,3.85505]
[1724788266849,2.0,2594.2,2593.5,3.85571]
[1724788266850,4.4646,2594.2,2593.7,3.85549]
[1724788267446,4.4646,2594.2,2593.6,3.8555]
[1724788268242,4.4646,2594.2,2593.7,3.85542]
[1724788268680,4.4646,2594.2,2593.8,3.85532]
[1724788270078,2.0,2593.8,2593.4,3.85584]
[1724788270279,4.4646,2593.8,2593.4,3.85584]
[1724788270804,0.29871375,2593.7,2593.4,3.85584]
[1724788271109,4.4646,2593.8,2593.4,3.85584]
[1724788271110,2.0,2593.8,2593.4,3.85584]
[1724788271279,2.0,2593.8,2593.6,3.85563]
[1724788271486,0.29871375,2593.7,2593.6,3.85563]
[1724788271683,2.0,2593.8,2593.6,3.85563]
[1724788272011,0.29871375,2593.7,2593.6,3.85563]
[1724788272313,2.0,2593.8,2593.5,3.85577]
[1724788272519,0.29871375,2593.7,2593.4,3.85582]
[1724788272813,2.0,2593.8,2593.5,3.8557]
[1724788273199,0.29888213,2593.7,2593.5,3.8557]
[1724788273520,2.0,2593.8,2593.5,3.8557]
[1724788273690,0.29888213,2593.7,2593.5,3.8557]
[1724788273885,2.0,2593.8,2593.5,3.8557]
[1724788274212,0.29888213,2593.7,2593.5,3.8557]
[1724788274570,2.0,2593.8,2593.5,3.8557]
[1724788275011,2.0,2593.5,2593.1,3.85629]
[1724788275323,0.2987138,2593.4,2593.2,3.8562]
[1724788275616,2.0,2593.5,2593.2,3.8562]
[1724788275822,2.0,2593.5,2593.1,3.85629]
[1724788275999,0.2987138,2593.4,2593.1,3.85629]
[1724788276312,2.0,2593.5,2593.1,3.85629]
[1724788276514,0.2987138,2593.4,2593.1,3.85629]
[1724788276813,2.0,2593.5,2593.1,3.85629]
[1724788276978,2.0,2593.5,2593.2,3.8562]
[1724788277178,0.2987138,2593.4,2593.2,3.8562]
[1724788277808,2.0,2593.5,2593.1,3.85629]
[1724788278123,0.2987138,2593.4,2593.1,3.85626]
[1724788278303,0.2987138,2593.4,2593.0,7.32]
[1724788278304,2.0,2593.2,2593.0,7.32]
[1724788278617,2.0,2593.2,2592.8,2.4323]
[1724788278618,4.291,2593.2,2592.8,3.85682]
[1724788279023,0.29852861,2593.1,2592.8,3.85682]
[1724788279312,4.291,2593.2,2592.8,3.85682]
[1724788279628,0.29852861,2593.1,2592.9,3.85667]
[1724788279978,2.0,2593.2,2592.9,3.85667]
[1724788280522,2.0,2592.9,2592.5,7.32]
[1724788280671,2.0,2592.9,2592.5,11.17725]
[1724788280672,0.29839391,2592.8,2592.5,11.17725]
[1724788281378,0.29839391,2592.8,2592.5,7.32]
[1724788281918,0.29839391,2592.8,2592.2,0.58827712]
[1724788281919,2.0,2592.5,2592.2,0.58827712]
[1724788282128,0.29831813,2592.4,2592.2,0.58827712]
[1724788282427,2.0,2592.5,2592.2,0.58827712]
[1724788282626,2.0,2592.5,2592.3,3.85745]
[1724788282928,2.0,2592.5,2592.2,4.44597712]
[1724788283422,2.0,2592.5,2592.2,0.58827712]
[1724788283732,4.3587,2592.5,2592.2,0.58827712]
[1724788284105,0.29760256,2592.4,2592.2,0.58827712]
[1724788286139,2.3587,2592.3,2592.2,0.58827712]
[1724788286635,2.65551074,2592.3,2592.2,0.58827712]
[1724788289409,0.29681074,2592.3,2592.2,0.58827712]
[1724788290105,2.0,2592.5,2592.2,0.58827712]
[1724788290303,2.0,2592.5,2592.3,6.20723]
[1724788290304,0.29664219,2592.4,2592.3,6.20723]
[1724788290539,0.4008755,2592.6,2592.5,3.85728]
[1724788290861,2.0,2592.8,2592.5,3.85728]
[1724788290862,2.0,2592.8,2592.5,7.71432]
[1724788291149,0.29664219,2592.7,2592.5,7.71432]
[1724788291303,0.29664219,2592.7,2592.6,0.771432]
[1724788291501,2.0,2592.8,2592.6,0.771432]
[1724788291723,0.29664219,2592.7,2592.5,3.85714]
[1724788291924,2.0,2592.8,2592.5,3.85714]
[1724788292155,0.29650111,2592.7,2592.6,3.85711]
[1724788292310,0.29650111,2592.7,2592.6,0.771425]
[1724788292515,2.0,2592.8,2592.6,4.628515]
[1724788292750,2.0,2593.1,2592.6,0.771425]
[1724788293108,0.29696455,2593.0,2592.5,3.85714]
[1724788293341,2.0,2592.7,2592.3,9.6697]
[1724788293646,2.0,2592.7,2592.3,7.32]
[1724788293839,2.0,2592.7,2592.3,9.73860471]
[1724788294139,0.29709933,2592.6,2592.3,9.73860471]
[1724788294443,2.0,2592.7,2592.3,9.73860471]
[1724788295147,0.29658556,2592.6,2592.3,9.73860471]
[1724788295443,2.0,2592.7,2592.3,9.73860471]
[1724788296889,2.0,2592.7,2592.3,2.41860471]
[1724788297057,2.0,2592.7,2592.2,4.44591712]
[1724788297238,0.29658556,2592.6,2592.2,4.44591712]
[1724788297643,2.0,2592.7,2592.2,4.44591712]
[1724788298283,2.0,2592.7,2592.4,3.85735]
[1724788298489,2.0,2592.7,2592.4,0.44456271]
[1724788298789,2.0,2592.7,2592.4,4.30191271]
[1724788299261,2.0,2592.7,2592.4,0.44456271]
[1724788299877,2.0,2592.7,2592.4,2.79446271]
[1724788300583,0.29656871,2592.6,2592.4,6.65187271]
[1724788300967,2.0,2592.7,2592.5,1.05093427]
[1724788301300,2.0,2593.0,2592.7,3.85686]
[1724788301594,0.29656871,2592.9,2592.7,3.85686]
[1724788302194,0.29656871,2592.9,2592.7,4.49402156]
[1724788302560,0.29656871,2592.9,2592.7,0.63716156]
[1724788302897,0.29656871,2592.9,2592.6,3.85712]
[1724788306333,0.29656871,2592.9,2592.5,1.05093427]
[1724788306334,0.29656871,2592.9,2592.4,6.20719]
[1724788306626,2.0,2592.7,2592.3,7.32]
[1724788307028,2.0,2592.4,2592.3,7.32]
[1724788307243,2.0,2592.4,2592.2,0.58827712]
[1724788307411,2.29680458,2592.4,2592.2,0.58827712]
[1724788314355,2.29680458,2592.4,2592.2,4.44598712]
[1724788315117,2.29680458,2592.4,2592.2,0.58827712]
[1724788321768,2.29680458,2592.4,2592.2,4.44597712]
[1724788322528,2.29680458,2592.4,2592.2,0.58827712]
[1724788323028,4.70470458,2592.4,2592.2,0.58827712]
[1724788323659,2.29680458,2592.4,2592.2,0.58827712]
[1724788326392,2.29680458,2592.4,2592.2,4.44598712]
[1724788326610,2.29680458,2592.4,2592.2,0.58827712]
[1724788326793,2.29680458,2592.4,2592.2,4.44598712]
[1724788327823,2.29680458,2592.4,2592.3,3.85757]
[1724788327980,2.29680458,2592.4,2592.3,4.91718571]
[1724788328396,2.29680458,2592.4,2592.2,0.58827712]
[1724788332230,2.29680458,2592.4,2592.2,4.44599712]
[1724788332430,2.29680458,2592.4,2592.3,10.06184]
[1724788332431,0.29680458,2592.4,2592.3,10.06184]
[1724788332936,2.0,2592.7,2592.4,3.85733]
[1724788333100,2.0,2592.7,2592.4,4.92234171]
[1724788333294,0.29624014,2592.6,2592.5,3.85728]
[1724788333634,2.0,2592.7,2592.5,3.85728]
[1724788333835,2.0,2592.7,2592.6,0.49222917]
[1724788334305,2.0,2592.7,2592.5,3.85728]
[1724788334306,2.29624014,2592.7,2592.5,3.85728]
[1724788334911,2.29624014,2592.7,2592.4,1.06501171]
[1724788335314,2.29624014,2592.7,2592.4,4.92240171]
[1724788335900,2.29624014,2592.7,2592.3,3.85744]
[1724788336112,2.29624014,2592.7,2592.2,0.58827712]
[1724788336539,2.0,2592.4,2592.2,0.58827712]
[1724788337027,0.2964339,2592.3,2592.2,0.58827712]
[1724788343644,4.2964339,2592.3,2592.2,0.58827712]
[1724788347751,4.69680743,2592.3,2592.2,0.58827712]
[1724788352618,8.55437743,2592.3,2592.2,0.58827712]
[1724788352927,14.83894743,2592.3,2592.2,0.58827712]
[1724788353317,17.83894743,2592.3,2592.2,0.58827712]
[1724788356354,10.12380743,2592.3,2592.2,0.58827712]
[1724788356713,7.69680743,2592.3,2592.2,0.58827712]
[1724788356953,4.69680743,2592.3,2592.2,0.58827712]
[1724788358215,4.69680743,2592.3,2592.2,8.30371712]
[1724788358412,4.0,2592.3,2592.2,8.30371712]
[1724788358658,4.29517826,2592.3,2592.2,8.30371712]
[1724788358815,4.29517826,2592.3,2592.2,5.50235883]
[1724788359247,0.29517826,2592.3,2592.2,5.50235883]
[1724788359758,2.0,2592.7,2592.2,5.50235883]
[1724788360159,0.29517826,2592.6,2592.2,5.50235883]
[1724788360669,0.29517826,2592.6,2592.2,1.64463883]
[1724788360882,2.0,2592.4,2592.2,1.64463883]
[1724788361028,0.29517826,2592.6,2592.4,3.85742]
[1724788361233,2.0,2592.7,2592.4,2.2599]
[1724788361552,0.29517826,2592.5,2592.4,2.2599]
[1724788362242,2.0,2592.4,2592.2,0.58827712]
[1724788362858,0.29517826,2592.3,2592.2,0.58827712]
[1724788363073,0.29517826,2592.3,2592.2,0.52827712]
[1724788371886,0.29517826,2592.3,2592.2,4.38599712]
[1724788373098,0.29517826,2592.3,2592.2,0.52827712]
[1724788374317,0.29517826,2592.3,2592.2,4.38599712]
[1724788374474,0.29517826,2592.3,2592.2,5.43637283]
[1724788374669,2.0,2592.4,2592.3,6.33357]
[1724788375913,2.29598737,2592.4,2592.3,6.33357]
[1724788376415,2.29598737,2592.4,2592.3,2.476]
[1724788380126,2.29598737,2592.4,2592.2,0.52827712]
[1724788381591,6.3323,2592.3,2592.2,0.52827712]
[1724788381791,10.48607645,2592.3,2592.2,0.52827712]
[1724788382331,10.48657645,2592.3,2592.2,0.52827712]
[1724788383448,17.34414645,2592.3,2592.2,0.52827712]
[1724788384017,17.89414645,2592.3,2592.2,0.52827712]
[1724788385604,18.29428533,2592.3,2592.2,0.52827712]
[1724788389106,18.29428533,2592.3,2592.2,0.13237552]
[1724788394333,14.43671533,2592.3,2592.2,0.13237552]
[1724788394643,17.74428533,2592.3,2592.2,0.13237552]
[1724788394854,13.88671533,2592.3,2592.2,0.13237552]
[1724788395069,17.74428533,2592.3,2592.2,0.13237552]
[1724788395736,13.88671533,2592.3,2592.2,0.13237552]
[1724788396274,17.74428533,2592.3,2592.2,0.13237552]
[1724788396629,11.55391533,2592.3,2592.2,0.13237552]
[1724788397061,15.41148533,2592.3,2592.2,0.13237552]
[1724788397232,15.81497086,2592.3,2592.2,0.13237552]
[1724788397575,11.95740086,2592.3,2592.2,0.13237552]
[1724788398152,5.09983086,2592.3,2592.2,0.13237552]
[1724788398352,4.69634533,2592.3,2592.2,0.13237552]
[1724788409990,17.73718533,2592.3,2592.2,0.13237552]
[1724788412726,18.28718533,2592.3,2592.2,0.13237552]
[1724788413881,18.69095478,2592.3,2592.2,0.13237552]
[1724788415110,22.54852478,2592.3,2592.2,0.13237552]
[1724788420347,2.0,2591.5,2591.4,2.4341]
[1724788420499,6.0,2591.5,2591.4,2.4341]
[1724788420700,6.0,2591.5,2590.9,0.12374319]
[1724788420701,2.0,2591.0,2590.9,0.12374319]
[1724788421200,2.29462187,2591.0,2590.9,0.12374319]
[1724788421424,2.29462187,2591.0,2590.9,2.56604319]
[1724788421633,6.15413187,2591.0,2590.9,0.12374319]
[1724788422017,10.15413187,2591.0,2590.9,0.12374319]
[1724788422815,13.15413187,2591.0,2590.9,0.12374319]
[1724788425233,9.29462187,2591.0,2590.9,0.12374319]
[1724788425431,9.29462187,2591.0,2590.9,2.52744319]
[1724788431560,9.69530162,2591.0,2590.9,2.52744319]
[1724788432042,13.55481162,2591.0,2590.9,2.52744319]
[1724788432357,9.69530162,2591.0,2590.9,2.52744319]
[1724788433913,5.69530162,2591.0,2590.9,2.52744319]
[1724788436947,9.69530162,2591.0,2590.9,2.52744319]
[1724788438655,13.55481162,2591.0,2590.9,2.52744319]
[1724788439369,9.69530162,2591.0,2590.9,2.52744319]
[1724788439756,13.55481162,2591.0,2590.9,2.52744319]
[1724788441147,13.55481162,2591.0,2590.9,0.12374319]
[1724788441351,17.41432162,2591.0,2590.9,0.12374319]
[1724788446996,13.55481162,2591.0,2590.9,0.12374319]
[1724788447448,9.69530162,2591.0,2590.9,0.12374319]
[1724788447651,9.69530162,2591.0,2590.9,2.37434319]
[1724788450497,13.55481162,2591.0,2590.9,0.12374319]
[1724788451794,9.69530162,2591.0,2590.9,0.12374319]
[1724788451967,9.69530162,2591.0,2590.9,2.50284319]
[1724788453940,9.69530162,2591.0,2590.9,6.36250319]
[1724788454106,9.69530162,2591.0,2590.9,3.30699848]
[1724788454107,6.29462187,2591.0,2590.9,3.30699848]
[1724788454322,2.0,2591.0,2590.9,2.50284319]
[1724788454466,2.293053,2591.0,2590.9,2.50284319]
[1724788462145,0.293053,2591.0,2590.9,10.22216319]
[1724788462347,2.0,2591.3,2591.0,3.85939]
[1724788462508,2.0,2591.3,2591.1,2.2619]
[1724788462708,0.29343266,2591.2,2591.1,2.2619]
[1724788463248,2.0,2591.3,2591.1,3.85935]
[1724788463449,2.0,2591.3,2591.2,2.65555338]
[1724788464351,2.0,2591.3,2591.2,2.2619]
[1724788465728,2.28491293,2591.3,2591.2,2.2619]
[1724788466153,2.28491293,2591.3,2591.2,1.9441612]
[1724788467944,2.28491293,2591.3,2590.9,0.12374319]
[1724788468654,0.39945943,2591.2,2590.9,0.12374319]
[1724788469253,0.39945943,2591.2,2590.9,2.46024319]
[1724788469541,0.28491293,2591.1,2590.9,2.46024319]
[1724788476471,2.0,2591.0,2590.9,0.12374319]
[1724788476999,2.2849804,2591.0,2590.9,0.12374319]
[1724788480317,2.2849804,2591.0,2590.9,2.51314319]
[1724788480731,2.0,2591.0,2590.9,2.51314319]
[1724788481010,2.28497196,2591.0,2590.9,2.51314319]
[1724788481223,2.28497196,2591.0,2590.9,0.12374319]
[1724788486891,6.28497196,2591.0,2590.9,0.12374319]
[1724788487624,8.54427196,2591.0,2590.9,0.12374319]
[1724788487826,4.54427196,2591.0,2590.9,0.12374319]
[1724788488328,8.54427196,2591.0,2590.9,0.12374319]
[1724788488530,12.40378196,2591.0,2590.9,0.12374319]
[1724788488731,19.26329196,2591.0,2590.9,0.12374319]
[1724788490535,19.26329196,2591.0,2589.7,4.67022156]
[1724788490536,2.0,2589.8,2589.7,2.3562]
[1724788490926,3.67998754,2589.8,2589.7,2.3562]
[1724788491228,2.28424647,2589.8,2589.7,2.3562]
[1724788491733,3.96423401,2589.8,2589.7,2.3562]
[1724788492542,7.96423401,2589.8,2589.7,2.3562]
[1724788492827,6.28424647,2589.8,2589.7,2.3562]
[1724788497553,2.28424647,2589.8,2589.7,2.3562]
[1724788499314,6.28424647,2589.8,2589.7,2.3562]
[1724788500053,7.96423401,2589.8,2589.4,2.2689]
[1724788500369,6.28424647,2589.8,2589.6,2.2689]
[1724788500656,2.28424647,2589.8,2589.7,2.2689]
[1724788500814,2.28424647,2589.8,2589.7,6.13035]
[1724788501157,2.28424647,2589.8,2589.7,3.44381546]
[1724788501362,0.28424647,2589.8,2589.7,12.846703]
[1724788502027,0.28424647,2589.8,2589.7,7.30526546]
[1724788502437,0.28424647,2589.8,2589.7,2.2689]
[1724788502640,2.28424647,2589.8,2589.7,2.2689]
[1724788506843,2.28424647,2589.8,2589.7,6.13035]
[1724788507861,0.28424647,2589.8,2589.7,17.88413013]
[1724788508079,0.28424647,2589.8,2589.7,19.67254314]
[1724788508228,0.39941256,2590.5,2590.4,3.8604]
[1724788508562,4.0,2590.5,2590.4,10.29459934]
[1724788508863,4.0,2590.5,2590.4,11.24685993]
[1724788509289,4.0,2590.5,2590.4,3.52605993]
[1724788509427,2.0,2590.7,2590.4,3.52605993]
[1724788509622,2.0,2590.7,2590.4,2.4966]
[1724788510261,2.0,2590.4,2590.1,2.4694]
[1724788511438,2.0,2590.4,2589.9,2.4694]
[1724788511830,2.0,2590.4,2589.9,6.33054]
[1724788513069,2.0,2590.4,2589.9,8.081715]
[1724788513581,2.0,2590.4,2590.0,3.86097]
[1724788513761,2.0,2590.4,2590.0,6.33027]
[1724788514075,2.0,2590.4,2590.1,3.8608]
[1724788515140,2.0,2590.4,2590.0,6.33027]
[1724788515589,2.0,2590.4,2590.0,11.3854255]
[1724788515787,2.0,2590.4,2590.1,3.86083]
[1724788516280,2.0,2590.4,2590.0,2.4694]
[1724788517260,2.0,2590.4,2589.9,3.8611]
[1724788517261,6.03088013,2590.4,2589.8,6.25578]
[1724788517594,4.0,2590.3,2589.8,10.11699]
[1724788517773,4.0,2590.3,2589.8,6.25578]
[1724788518095,4.0,2590.3,2590.1,6.25535]
[1724788518892,4.0,2590.3,2590.2,3.8607]
[1724788519096,2.0,2590.4,2590.2,3.8607]
[1724788520812,2.0,2590.4,2590.1,2.3946]
[1724788520983,2.0,2590.4,2590.1,6.25541]
[1724788521167,2.0,2590.4,2590.1,7.4027938]
[1724788522411,2.0,2590.4,2590.2,3.86067]
[1724788522592,2.0,2590.4,2590.3,3.86055]
[1724788522910,2.0,2590.4,2590.1,3.5419838]
[1724788523208,2.0,2590.4,2590.1,7.4027038]
[1724788523410,2.0,2590.4,2590.2,1.12635938]
[1724788524009,2.0,2590.4,2590.3,3.86055]
[1724788524221,2.0,2590.4,2590.3,2.304]
[1724788524599,2.0,2590.4,2590.1,2.304]
[1724788525294,2.0,2590.4,2589.8,2.304]
[1724788525295,2.0,2590.0,2589.8,2.304]
[1724788525808,2.0,2590.0,2589.8,6.16529]
[1724788526195,2.0,2590.0,2589.8,6.16522]
[1724788528409,2.0,2590.0,2589.8,10.02644]
[1724788528617,2.0,2590.0,2589.9,5.595794]
[1724788528971,2.0,2590.3,2590.0,3.86086]
[1724788529172,6.0,2590.3,2589.9,3.86115]
[1724788530387,6.39969804,2590.3,2589.9,3.86115]
[1724788531381,6.39969804,2590.3,2589.8,6.16521]
[1724788531708,6.39969804,2590.3,2589.8,3.86121]
[1724788532382,4.0,2590.2,2589.8,3.86121]
[1724788532582,2.0,2590.0,2589.6,10.17147]
[1724788532785,2.0,2590.0,2589.7,1.017147]
[1724788533505,2.0,2590.0,2589.6,10.17139]
[1724788533710,2.0,2590.0,2589.7,3.86142]
[1724788534105,2.0,2590.0,2589.6,6.30989]
[1724788535482,2.0,2590.0,2589.6,3.86149]
[1724788535483,2.3759,2589.9,2589.6,3.86149]
[1724788535889,2.0,2590.0,2589.6,3.86149]
[1724788538153,2.0,2589.7,2589.4,7.32]
[1724788538307,2.0,2589.7,2589.3,2.4484]
[1724788539612,2.0,2589.7,2589.3,6.3104]
[1724788541245,4.0,2589.6,2589.5,3.86174]
[1724788542146,2.0,2589.7,2589.5,3.86174]
[1724788542711,2.0,2589.7,2589.3,3.46565]
[1724788543054,4.03088013,2589.6,2589.1,2.4425]
[1724788543207,2.0,2589.4,2589.0,23.60238]
[1724788543722,2.0,2589.4,2589.0,3.86238]
[1724788543939,2.0,2589.4,2589.0,4.879137]
[1724788544727,2.0,2589.4,2589.1,3.86226]
[1724788546813,2.0,2589.4,2589.0,4.879137]
[1724788547218,2.0,2589.4,2589.0,8.741537]
[1724788548441,2.0,2589.4,2589.0,4.879137]
[1724788548626,2.0,2589.4,2589.0,8.741547]
[1724788548959,2.0,2589.4,2589.1,3.86227]
[1724788549956,2.0,2589.4,2589.1,4.9806607]
[1724788550160,2.0,2589.7,2589.4,3.86186]
[1724788550458,4.0,2589.5,2589.4,3.86189]
[1724788550612,4.0,2589.5,2589.4,4.49162171]
[1724788550813,4.0,2589.5,2589.4,0.62973171]
[1724788551329,4.0,2589.5,2589.4,4.49162171]
[1724788551737,2.0,2589.7,2589.4,0.62973171]
[1724788553561,2.0,2589.7,2589.2,6.22039]
[1724788556421,2.0,2589.7,2589.2,3.86219]
[1724788556617,2.0,2589.7,2589.1,1.1183907]
[1724788556965,2.0,2589.7,2589.0,6.28765]
[1724788559466,2.0,2589.7,2589.1,3.86233]
[1724788559663,2.0,2589.7,2589.1,7.7246]
[1724788560035,2.0,2589.7,2589.1,7.72454]
[1724788560253,2.0,2589.7,2589.1,3.86227]
[1724788560455,2.0,2589.7,2589.1,8.73954]
[1724788561168,2.0,2589.7,2589.1,4.87727]
[1724788561767,2.0,2589.7,2589.0,6.28768]
[1724788562057,6.43168083,2589.6,2589.0,3.86248]
[1724788562223,2.0,2589.2,2588.8,3.86275]
[1724788562428,2.0,2589.2,2588.8,5.609844]
[1724788567372,2.0,2589.2,2588.7,11.18293]
[1724788567981,6.03198083,2589.2,2588.7,11.18293]
[1724788568846,6.03198083,2589.2,2588.7,7.32]
[1724788569044,2.3997,2589.1,2588.7,7.32]
[1724788569432,2.0,2588.9,2588.7,7.32]
[1724788570808,4.03198083,2589.2,2588.7,14.554334]
[1724788570809,2.0,2589.2,2588.7,14.554334]
[1724788570974,2.0,2588.8,2588.7,7.32]
[1724788573409,2.0,2588.8,2588.5,3.86315]
[1724788573897,2.0,2588.8,2588.6,3.86308]
[1724788574778,4.4693,2588.8,2588.6,3.86308]
[1724788574968,2.0,2588.8,2588.6,6.17268]
[1724788575164,0.40024155,2589.0,2588.7,3.86282]
[1724788576310,2.08114,2589.0,2588.7,3.86282]
[1724788576976,0.40024155,2589.0,2588.8,3.86278]
[1724788577388,0.40024155,2589.0,2588.7,3.86293]
[1724788578566,0.40024155,2589.0,2588.6,2.3096]
[1724788578766,0.40024155,2589.0,2588.3,6.2696312]
[1724788578767,4.15719845,2588.9,2588.3,6.2696312]
[1724788579269,4.15719845,2588.9,2588.5,3.86323]
[1724788581614,1.68089845,2588.7,2588.4,3.86337]
[1724788581970,1.68089845,2588.7,2588.3,0.1245212]
[1724788582100,1.68089845,2588.5,2588.3,0.1245212]
[1724788582311,1.68089845,2588.4,2588.3,0.1245212]
[1724788588293,6.55752872,2588.5,2588.3,0.1245212]
[1724788589632,4.87663027,2588.5,2588.3,0.1245212]
[1724788589939,6.55752872,2588.5,2588.3,0.1245212]
[1724788590536,1.68089845,2588.4,2588.3,0.1245212]
[1724788590977,8.17329845,2588.4,2588.3,0.1245212]
[1724788591674,12.03668845,2588.4,2588.3,0.1245212]
[1724788592488,10.35579,2588.4,2588.3,0.1245212]
[1724788592697,18.90007845,2588.4,2588.3,0.1245212]
[1724788592863,18.90007845,2588.4,2587.1,3.86529]
[1724788592864,1.68089845,2587.4,2587.1,3.86529]
[1724788593061,1.68089845,2587.4,2587.0,3.86538]
[1724788593453,1.68089845,2587.5,2587.0,3.86538]
[1724788593757,2.0,2587.7,2587.3,5.54589845]
[1724788593955,2.0,2587.7,2587.5,5.54561845]
[1724788594191,4.0,2587.6,2587.5,2.49068576]
[1724788594343,2.0,2587.7,2587.5,2.4134]
[1724788596392,2.0,2587.7,2587.5,3.04895584]
[1724788596979,2.40007523,2588.0,2587.5,3.12624074]
[1724788598275,2.40007523,2588.0,2587.5,2.4906849]